{"text_format":"3","workbook":"xlsx","n_sheets":1,"sheets":["RFP160.2023"],"read":"whole","date_system":"1900"}

{"sheet":"RFP160.2023","index":0,"n_rows":63,"n_cols":6,"rows_kept":63,"merged":[[0,0,0,5],[1,1,1,5],[58,0,58,4],[60,0,60,4],[62,0,62,4]]}
["RFP160/2023: \nTHE SUPPLY AND DELIVERY OF FILTER SAND, FLY ASH FOR CONCRETE, WATERSTOPS CEMENT AND READY MIX MATERIALS  TO DWS CONSTRUCTION NORTH TZANEEN DAM RAISING PROJECT IN THE LIMPOPO PROVINCE"]
[]
["Item","Description","Unit","Quantity","Rate","Total"]
[]
[]
[1,"Supply and delivery of Bulk Fly Ash for Concrete ","Tonnes",{"v":4000,"d":"4,000"},null,{"$f":"D6*E6","v":{"v":0,"d":"R0.00"}}]
[]
[2,"Suppply and Delivery of cement in bags"]
[null,"Cement in bags CEM II/A-L 42.5 N) ","no",{"v":45000,"d":"45,000"},null,{"$f":"D9*E9","v":{"v":0,"d":"R0.00"}}]
[]
[3,"Suppply and Delivery of Bulk Cement"]
[null,"Cement in bulk CEM II/A-L 52.5 N","tons",11000,null,{"v":0,"d":"R0.00"}]
[]
[4,"Supply and delivery of Ready- Mix Concrete"]
[null,"Concrete grade of 30/19 ","m3",3000,null,{"v":0,"d":"R0.00"}]
[]
[5,"Suppply and Delivery of Bentonite (25kg) ","no",15000,null,{"v":0,"d":"R0.00"}]
[]
[6,"Drillling and Grouting Material","tons",75,null,{"v":0,"d":"R0.00"}]
[null,"sika grout 212 "]
[]
[7,"Drillling and Grouting Material","Sum",1,null,{"v":0,"d":"R0.00"}]
[null,"Service"]
[]
[8,"PVC WATERSTOPS (As per Specifications)"]
[]
[8.1,"250 mm PVC Centre- Bulb Water stops","m",{"v":2500,"d":"2,500"},null,{"v":0,"d":"R0.00"}]
[]
[8.2,"250mm wide PVC Rearguard \"S\" Water stop","m",500,null,{"v":0,"d":"R0.00"}]
[]
[8.3,"250 mm PVC Centre- bulb Intersections (T – Piece)","Number",50,null,{"v":0,"d":"R0.00"}]
[]
[8.4,"250 mm PVC Centre- bulb Intersections (4 way on flat)","Number",50,null,{"v":0,"d":"R0.00"}]
[]
[8.5,"250 mm PVC Centre- bulb Intersections  ","Number",30,null,{"v":0,"d":"R0.00"}]
[null,"(3 way on flat)    "]
[]
[8.6,"250mm wide PVC Rearguard \"S\" Water stop Intersections","Number",50,null,{"v":0,"d":"R0.00"}]
[null,"(4 way on flat)"]
[]
[8.7,"250mm wide PVC Rearguard \"S\" Water stop Intersections","Number",40,null,{"v":0,"d":"R0.00"}]
[null,"(3 way on flat)"]
[]
[9,"EXPANDABLE JOINT SEALING WATERSTOP (As per Specification)"]
[]
[9.1,"10 mm x 20 mm Expandable Preformed Joint Sealing waterstops","m",{"v":1500,"d":"1,500"},null,{"v":0,"d":"R0.00"}]
[]
[10,"JOINTING PACKAGE TO JOIN 250MM WIDE PVC WATER STOPS "]
[null,"(As per Specification)"]
[]
[10.1,"PVC Water stops Heater Blade complete","Number",15,null,{"v":0,"d":"R0.00"}]
[]
[10.2,"PVC 250 mm Centre bulb Water stops Jointing rig ","Number",10,null,{"v":0,"d":"R0.00"}]
[]
[10.3,"PVC 250 mm Rearguard \"S\" Water stop Jointing rig","Number",10,null,{"v":0,"d":"R0.00"}]
[]
[]
[]
["TOTAL",{"$nulls":4},{"$f":"SUM(F6:F55)","v":{"v":0,"d":"R0.00"}}]
["CONTEGENCIES",null,"%",{"v":0.05,"d":"5%"},null,{"$f":"F59*D60","v":{"v":0,"d":"R0.00"}}]
["SUB TOTAL",{"$nulls":4},{"$f":"SUM(F59:F60)","v":{"v":0,"d":"R0.00"}}]
["VAT @ 15%",null,"%",{"v":0.15,"d":"15%"},null,{"$f":"F61*D62","v":{"v":0,"d":"R0.00"}}]
["GRAND TOTAL",{"$nulls":4},{"$f":"F61+F62","v":{"v":0,"d":"R0.00"}}]